Cogmind - Beta 15 @@@ ROGUE MODE // 2025.09.01 @ 18:53:54 Player: delto Result: Destroyed by Y-45 Defender with Beam Rifle Performance ------------- Evolutions (1) 500 Regions Visited (2) 400 Robots Destroyed (8) 40 Value Destroyed (228) 228 Prototype IDs (0) 0 Alien Tech Used (0) 0 Bonus (0) 0 TOTAL SCORE: 1168 Bonus ------- None Cogmind --------- Core Integrity 0/400 Matter 210/300 Energy 82/125 System Corruption 0% Temperature Hot (200) Movement Flying (40) Location -9/Materials Parts ------- > --- POWER (1) -------- Light Ion Engine > --- PROPULSION (2) --- Flight Unit > --- UTILITY (3) ------ Weight Redist. System > --- WEAPON (3) ------- Beam Rifle > --- INVENTORY (5) ---- Particle Cannon Peak State ------------ > --- POWER ------------ Improved Ion Engine > --- PROPULSION ------- Light Treads > --- UTILITY ---------- Small Storage Unit Weight Redist. System > --- WEAPON ----------- Beam Rifle Beam Rifle Particle Cannon > --- INVENTORY -------- Aluminum Leg Aluminum Leg [Rating: 12] Favorites ----------- Power Ion Engine Engine Ion Engine Propulsion Aluminum Leg Treads Light Treads Leg Aluminum Leg Flight Unit Flight Unit Utility Small Storage Unit Device Seismic Detector Storage Small Storage Unit Weapon Light Assault Rifle Energy Gun Beam Rifle Energy Cannon Particle Cannon Ballistic Gun Light Assault Rifle Build | -11 -10 -9 ------- Run | Yrd Mat Mat Slots Evolved 2 | . . 2 Power . | . . . Propulsion . | . . . Utility 1 | . . 1 Weapon 1 | . . 1 Parts Attached 20 | 7 . 13 Power 4 | 1 . 3 Engine 4 | 1 . 3 Core . | . . . Reactor . | . . . Propulsion 5 | 2 . 3 Treads 1 | . . 1 Leg 3 | 2 . 1 Wheel . | . . . Hover . | . . . Flight 1 | . . 1 Utility 4 | 2 . 2 Device 3 | 1 . 2 Storage 1 | 1 . . Processor . | . . . Hackware . | . . . Protection . | . . . Artifact . | . . . Weapon 7 | 2 . 5 Energy Gun 2 | . . 2 Energy Cannon 2 | . . 2 Ballistic Gun 3 | 2 . 1 Ballistic Cannon . | . . . Launcher . | . . . Special Weapon . | . . . Impact Weapon . | . . . Slashing Weapon . | . . . Piercing Weapon . | . . . Special Melee Weapon . | . . . Unidentified Prototypes . | . . . Parts Lost 15 | . . 15 Power 3 | . . 3 Propulsion 4 | . . 4 Utility 3 | . . 3 Weapon 5 | . . 5 Highest Loss Streak 8 | . . 8 To Critical Strikes . | . . . Average Backups 2 | 1 2 2 Power . | . 1 . Propulsion . | . . 1 Utility . | . . . Weapon . | . 1 . Tool/Special . | . . . Unused Backups 2 | . 2 . Power 2 | . 2 . Propulsion . | . . . Utility . | . . . Weapon . | . . . Tool/Special . | . . . Average Slot Usage (%) 90 | . 100 82 Engine 12 | . 14 10 Treads 2 | . . 4 Leg 19 | . 28 12 Device 16 | . 14 17 Storage 12 | . 14 10 Energy Gun 2 | . . 3 Energy Cannon 3 | . . 6 Ballistic Gun 21 | . 28 16 Peak Build Rating 12 | 7 7 12 Average Rating 7 | 5 7 8 On Entrance 4 | . 7 7 Naked Turns . | . . . Heaviest Build 22 | 13 13 22 Greatest Support 26 | 20 20 26 Greatest Overweight (x) 1 | . . 1 Average Overweight (x) . | . . . Largest Inventory Capacity 8 | 8 8 8 Average Capacity 7 | 7 8 7 Most Carried 5 | 2 5 4 Average Carried 2 | 1 2 2 Final Capacity 8 | 8 8 5 Final Carried 4 | 2 4 1 Class Distribution -------------------- 74% | Mutant 25% | Gunner Dominant Class ---------------- Mutant | -10/Materials Gunner | -9/Materials Resources | -11 -10 -9 ----------- Run | Yrd Mat Mat Matter Collected 318 | 287 31 . Remotely . | . . . Salvage Created 321 | 12 154 155 Parts 19 | 2 6 11 Haulers Intercepted . | . . . Recyclers Shooed . | . . . Parts Field Recycled . | . . . Retrieved Matter . | . . . Parts Self-Destructed . | . . . Prevented . | . . . Kills | -11 -10 -9 ------- Run | Yrd Mat Mat Combat Hostiles Destroyed 6 | . 2 4 Guns 4 | . 2 2 Cannons 2 | . . 2 Classes Destroyed 5 | 1 2 2 Tunneler 1 | 1 . . Recycler 1 | . 1 . Swarmer 1 | . . 1 Grunt 3 | . 2 1 Sentry 2 | . . 2 Best Kill Streak 3 | 1 3 1 Combat Bots Only 2 | . 2 1 Max Kills in Single Turn 1 | 1 1 1 Gunslinging . | . . . Exploded . | . . . Melee . | . . . Uniques/NPCs Destroyed . | . . . Combat | -11 -10 -9 -------- Run | Yrd Mat Mat Hostile Shots Fired 217 | . 18 199 Missed 65 | . . 65 Hits 152 | . 18 134 Projectile 152 | . 18 134 Critical Strikes 3 | . . 3 Damage Taken 1920 | . 243 1677 Core 499 | . 97 402 Absorbed by Shields . | . . . Core Remaining (%) 80 | 100 61 . Volleys Fired 36 | 12 12 12 Largest 3 | 2 2 3 Hottest 180 | 40 40 180 Shots Fired 79 | 24 24 31 Gun 69 | 24 24 21 Cannon 10 | . . 10 Launcher . | . . . Special . | . . . Kinetic 57 | 24 24 9 Thermal 22 | . . 22 Explosive . | . . . Electromagnetic . | . . . Robot Hit Streak 13 | 7 13 10 Robot Miss Streak 5 | 3 1 5 Penetration Max . | . . . Secondary Targets 1 | . 1 . Max Gunslinging Chain 1 | . 1 . Shots Hit Robots 53 | 15 20 18 Core Hits 17 | 3 8 6 Critical Kills . | . . . Critical Parts Destroyed . | . . . Critical Strikes . | . . . Melee Attacks . | . . . Impact . | . . . Slashing . | . . . Piercing . | . . . Sneak Attacks . | . . . Combat Hostiles . | . . . Follow-up Attacks . | . . . Damage Inflicted 594 | 126 176 292 Guns 450 | 126 176 148 Cannons 144 | . . 144 Explosions . | . . . Melee . | . . . Ramming . | . . . Kinetic 378 | 126 176 76 Thermal 216 | . . 216 Explosive . | . . . Electromagnetic . | . . . Impact . | . . . Slashing . | . . . Piercing . | . . . Highest Corruption . | . . . Average Corruption . | . . . Corruption Purged . | . . . Corruption Blocked . | . . . Overload Shots . | . . . Overflow Damage . | . . . Projectiles . | . . . Explosions . | . . . Melee . | . . . Knockbacks . | . . . Impact . | . . . Kinetic . | . . . Secondary . | . . . Self-Inflicted Damage . | . . . Shots . | . . . Rammed . | . . . Targets Rammed . | . . . Kicked . | . . . Crushed . | . . . Highest Temperature 265 | . 45 265 Average Temperature 94 | . 28 125 Received Heat Transfer 759 | . 141 618 Siege Activations . | . . . Martial Activations . | . . . Shielding Activations . | . . . Robots Disrupted . | . . . Combat Hostiles . | . . . Robots Corrupted . | . . . Combat Hostiles . | . . . Parts Fried . | . . . Impact Corruptions . | . . . Robots Melted . | . . . Combat Hostiles . | . . . Parts Melted . | . . . Heat Transferred 444 | . . 444 Parts Sabotaged . | . . . Parts Stolen . | . . . Parts Stripped . | . . . Power Chain Reactions . | . . . Alert | -11 -10 -9 ------- Run | Yrd Mat Mat Maximum Alert Level . | . . . Low Security (%) 100 | 100 100 100 Level 1 . | . . . Level 2 . | . . . Level 3 . | . . . Level 4 . | . . . Level 5 . | . . . High Security . | . . . Max Security . | . . . Peak Influence 60 | 5 45 60 Initial 1 | . . 1 Average 8 | . 11 9 Influence Increases 200 | 5 55 140 Destroy 0b10 Robot/C 120 | . 40 80 Destroy 0b10 Robot/NC 10 | 5 5 . Destroy Leader 40 | . 10 30 Lose Combat Pursuer 30 | . . 30 Influence Decreases 200 | 5 50 145 Entered New Map 4 | . . 4 Time Decay 106 | 5 50 51 Lost Part 90 | . . 90 Squads Dispatched 2 | . . 2 Investigation . | . . . Extermination . | . . . Reinforcement 2 | . . 2 Assault . | . . . Garrison . | . . . Intercept . | . . . Searches Triggered . | . . . Construction Impeded . | . . . Haulers Reinforced . | . . . Active Scanning Responses . | . . . Cargo Convoy Interrupts . | . . . Stealth | -11 -10 -9 --------- Run | Yrd Mat Mat Distress Signals 2 | . . 2 Communications Jammed . | . . . Distress Signals . | . . . Times Spotted 21 | . 4 17 Peak Tracking Total 8 | . 2 8 Tactical Retreats 1 | . . 1 Traps | -11 -10 -9 ------- Run | Yrd Mat Mat Traps Triggered . | . . . Indirectly . | . . . Trap Hack Attempts . | . . . Triggered . | . . . Disarmed . | . . . Reprogrammed . | . . . Reused . | . . . Traps Extracted . | . . . Installed . | . . . Triggered . | . . . Machines | -11 -10 -9 ---------- Run | Yrd Mat Mat Machines Disabled . | . . . Max in Single Turn . | . . . Machines Repaired . | . . . Machines Dismantled . | . . . Machines Sabotaged . | . . . Overloaded Fab Kills . | . . . Hacking | -11 -10 -9 --------- Run | Yrd Mat Mat Machines Accessed 1 | . 1 . Terminals 1 | . 1 . Fabricators . | . . . Repair Stations . | . . . Recycling Units . | . . . Scanalyzers . | . . . Garrison Access . | . . . Total Hacks 1 | . 1 . Successful . | . . . Failed 1 | . 1 . Catastrophic . | . . . Database Lockouts . | . . . Manual 1 | . 1 . Terminals 1 | . 1 . Fabricators . | . . . Repair Stations . | . . . Recycling Units . | . . . Scanalyzers . | . . . Garrison Access . | . . . Terminal Hacks . | . . . Fabricator Hacks . | . . . Repair Station Hacks . | . . . Recycling Unit Hacks . | . . . Scanalyzer . | . . . Garrison Access Hacks . | . . . Unauthorized Hacks . | . . . Terminals . | . . . Fabricators . | . . . Repair Stations . | . . . Recycling Units . | . . . Scanalyzers . | . . . Garrison Access . | . . . Data Cores Recovered . | . . . Used . | . . . Hacking Detections 1 | . 1 . Full Trace Events . | . . . Feedback Events . | . . . Feedback Blocked . | . . . Robot Schematics Acquired . | . . . Robots Built . | . . . Authchips . | . . . Time . | . . . Total Robot Build Rating . | . . . Part Schematics Acquired . | . . . Parts Built . | . . . Authchips . | . . . Time . | . . . Total Part Build Rating . | . . . Parts Repaired . | . . . Time . | . . . Parts Recycled . | . . . Recycled Matter . | . . . Retrieved Matter . | . . . Retrieved Components . | . . . Parts Scanalyzed . | . . . Part Schematics Acquired . | . . . Parts Damaged . | . . . Bothacking | -11 -10 -9 ------------ Run | Yrd Mat Mat Used RIF Installer . | . . . Robots Hacked . | . . . Non-combat . | . . . Combat . | . . . Robot Hacks Applied . | . . . Relay Couplers Released . | . . . Fabnet Peak Effective % . | . . . Robots Rewired . | . . . Allies Hacked . | . . . Hacks Repelled . | . . . Allies | -11 -10 -9 -------- Run | Yrd Mat Mat Total Allies . | . . . Largest Group . | . . . Highest-Rated Group . | . . . Highest-Rated Ally . | . . . Total Orders . | . . . Ally Attacks . | . . . Total Damage . | . . . Kills . | . . . Allies Corrupted . | . . . Allies Melted . | . . . Intel | -11 -10 -9 ------- Run | Yrd Mat Mat Active Infowar (turns) 378 | 18 201 159 Seismic 378 | 18 201 159 Robot Analysis Total . | . . . Derelict Logs Recovered . | . . . Drone Launches . | . . . Drone Recoveries . | . . . Exploration | -11 -10 -9 ------------- Run | Yrd Mat Mat Turns Passed 606 | 134 201 271 Spaces Moved 374 | 77 138 159 Core 4 | 2 . 2 Treads 47 | . . 47 Legs 322 | 75 138 109 Wheels . | . . . Hover . | . . . Flight 1 | . . 1 Fastest Speed 40 | 50 120 40 Average Speed 125 | 118 120 132 Slowest Speed 190 | 120 120 190 Overloaded Moves . | . . . Propulsion Burnouts . | . . . Robots Hopped . | . . . Potential Cave-ins . | . . . Cave-ins Triggered . | . . . Exploration Rate (%) 15 | 5 19 21 Regions Visited 2 Branch Regions . Pre-discovered Areas . | . . . Known Exits Taken . | . . . Unknown Exits Taken 2 | 1 1 . Scrap Searched . | . . . Spaces Dug . | . . . Terrain Destroyed . | . . . Melee . | . . . Projectile . | . . . AOE . | . . . Terrain Rammed . | . . . Walls Destroyed . | . . . Machines Disabled . | . . . Actions | -11 -10 -9 --------- Run | Yrd Mat Mat Total 445 | 98 155 192 Wait 1 | . . 1 Move 372 | 76 137 159 Hop . | . . . Pick Up 9 | 3 4 2 Fast Attach 13 | 6 . 7 Attach 9 | 1 . 8 Detach 3 | . . 3 Swap . | . . . Drop 2 | . 2 . Fire 36 | 12 12 12 Melee . | . . . Ram . | . . . Kick . | . . . Crush . | . . . Escape Stasis . | . . . Rewire . | . . . Trap . | . . . Miscellaneous . | . . . Route ------- -11/Scrapyard -10/Materials -9/Materials History --------- Turn | Location | Event 7 | -11/Scrapyard | Discovered new exit (range 15) 135 | -11/Scrapyard | Entered Materials 317 | -10/Materials | Build established: Mutant 332 | -10/Materials | Discovered new exit (range 4) 336 | -10/Materials | Entered another Materials area 336 | -9/Materials | Evolved 2 slots: Utility x1, Weapon x1 543 | -9/Materials | Lost 7 parts (1p1n1u4w) 560 | -9/Materials | Core integrity fell below 50% 599 | -9/Materials | Core integrity fell below 20% 607 | -9/Materials | Destroyed by Y-45 Defender with Beam Rifle Last Messages --------------- 00546_ Ion Engine destroyed. 00556_ Acquired Beam Rifle. 00566_ G-34 Mercenary destroyed. 00567_ R-06 Scavenger collects Ion Engine. 00570_ Heat Sink destroyed. 00571_ U-05 Engineer builds a Door. 00572_ R-06 Scavenger collects Aluminum Leg. 00593_ Sml. Storage Unit destroyed. 00593_ ALERT: Hostiles spotted, dispatching reinforcements to Terminal M005. 00593_ Lgt. Treads destroyed. 00596_ Aluminum Leg destroyed. 00596_ Critical hit (Burn: +37). 00599_ S-10 Pest destroyed. 00599_ Aluminum Leg destroyed. 00600_ S-10 Pest destroyed. 00602_ Beam Rifle destroyed. 00602_ Imp. Ion Engine destroyed. 00603_ Acquired Lgt. Ion Engine. 00605_ Acquired Flight Unit. Map ----- +----------------------------------------------------+ | ??????????# % | | ??????????# | | ????????########## ##### ## | | ????????# !! ??## ######+#? | | ????????# !! ???# # ? | | ????????? !! ????# # """ | | ????????? ????# + """ | | ?????????? ?????# #? """ | | ??#######? ?????# #? | | ??# ###+####### #???"" | | ??# #????" | | ??# =% #????" | | ??# #????? | | ??# ###"###########?????### | | ??##Y ##??? ????????????????? | | ???# g#????? ???????????????? | | ???# Y #?????? ??????????????? | | ???# #??????? #????????????? | | ???# #???????? #????????????? | | ???# #?????????#????????????? | | ???# #??????????????????????? | | ???# s%#??????????????????????? | | ???# =#??????????????????????? | | ???# %#??????????????????????? | | ???# [#??????????????????????? | | ???# @#??????????????????????? | | ???# #??????????????????????? | | ???# #??????????????????????? | | ???# #??????????????????????? | | ???# u #??????????????????????? | | ???# #??????????????????????? | | ???# +??????????????????????? | | ???# #??????????????????????? | | ???# #??????????????????????? | | ???# #??????????????????????? | | ???# #??????????????????????? | | ???#s #??????????????????????? | | ???# ???????????????????????? | | ???# ???????????????????????? | | ???# ???????????????????????? | | ???? ???????????????????????? | | ??????????????????????????????? | | ??????????????????????????????? | | ??????????????????????????????? | | ??????????????????????????????? | | ??????????????????????????????? | | ??????????????????????????????? | | ??????????????????????????????? | | ??????????????????????????????? | | ??????????????????????????????? | +----------------------------------------------------+ Best States ------------- Heat Dissipation 38 Energy Generation 12 Energy Capacity 265 Matter Stores 300 Matter Capacity 300 Sight Range 16 Terrain Scan Density 10 Additional Mass Support 6 Evasion (%) 55 Recoil Reduction 1 Item Schematics ----------------- None Robot Schematics ------------------ None Fabricated ------------ Nothing Repaired ---------- Nothing Alien Tech Used ----------------- None Achievements -------------- None Challenges ------------ None Game ------ Seed GunZioniteMallet Manual? 0 Play Time 00:09:34 Cumulative 60.3 hours Start 2025.09.01 @ 18:46:02 End 2025.09.01 @ 18:53:54 Sessions 1 Manual Loads 0 Difficulty Rogue Special Mode None Game No. 77 Rogue 77 Adventurer 0 Explorer 0 Win Type - Total 0 Types 0/0/0/0/0/0/0/0/0/0 Lore% 15 Gallery% 34 Achievement% 29 Wizard Run 0 Options --------- Layout 0 ASCII 0 Keyboard 0 Movement Mouse Keybinds 0 Fullscreen 1 Font 24/Smallcaps Map View 76x50 Zoom Use 0% Tactical HUD 1 Map Filters NONE Filters NONE Steam 1 RUN: 391409b5-a594-404e-b3e7-c755ab4b4747